[Event "Titled Tuesday Blitz April 11 Early 2023"]
[White "Steinberg, Nitzan"]
[Black "Hnydiuk, Aleksander"]
[WhiteFideId "2801795"]
[BlackFideId "1109057"]
[WhiteElo "2486"]
[BlackElo "2374"]
[Result "1-0"]
[Round "01"]
[TimeControl "180+2"]
[Date "2023.04.11"]
[WhiteClock "0:00:49"]
[BlackClock "0:00:02"]

1. d4 {[%clk 0:03:00]}  Nf6 {[%clk 0:02:58]} 2. Nf3 {[%clk 0:03:01]}  g6 {[%clk 0:02:56]} 3. Nbd2 {[%clk 0:02:58]}  c5 {[%clk 0:02:49]} 4. e3 {[%clk 0:02:56]}  Bg7 {[%clk 0:02:46]} 5. dxc5 {[%clk 0:02:54]}  Qa5 {[%clk 0:02:45]} 6. a3 {[%clk 0:02:54]}  Qxc5 {[%clk 0:02:43]} 7. b4 {[%clk 0:02:54]}  Qc7 {[%clk 0:02:43]} 8. Bb2 {[%clk 0:02:54]}  O-O {[%clk 0:02:43]} 9. c4 {[%clk 0:02:53]}  b6 {[%clk 0:02:34]} 10. Be2 {[%clk 0:02:53]}  Bb7 {[%clk 0:02:34]} 11. O-O {[%clk 0:02:53]}  d6 {[%clk 0:02:24]} 12. Rc1 {[%clk 0:02:54]}  Nbd7 {[%clk 0:02:24]} 13. Qb3 {[%clk 0:02:54]}  Rac8 {[%clk 0:02:24]} 14. Rfd1 {[%clk 0:02:54]}  Qb8 {[%clk 0:02:24]} 15. h3 {[%clk 0:02:54]}  Rc7 {[%clk 0:02:17]} 16. Nd4 {[%clk 0:02:54]}  a6 {[%clk 0:02:16]} 17. Bf3 {[%clk 0:02:51]}  Rfc8 {[%clk 0:02:16]} 18. b5 {[%clk 0:02:41]}  Ne5 {[%clk 0:02:08]} 19. Bxb7 {[%clk 0:02:37]}  Qxb7 {[%clk 0:02:09]} 20. f4 {[%clk 0:02:36]}  Ned7 {[%clk 0:02:09]} 21. a4 {[%clk 0:02:15]}  Nc5 {[%clk 0:02:08]} 22. Qc2 {[%clk 0:02:14]}  a5 {[%clk 0:01:52]} 23. Nc6 {[%clk 0:02:10]}  Rxc6 {[%clk 0:01:52]} 24. bxc6 {[%clk 0:02:10]}  Qxc6 {[%clk 0:01:52]} 25. Ra1 {[%clk 0:02:11]}  Nfe4 {[%clk 0:01:15]} 26. Bxg7 {[%clk 0:02:10]}  Kxg7 {[%clk 0:01:16]} 27. Nf3 {[%clk 0:02:10]}  Na6 {[%clk 0:00:41]} 28. Nd4 {[%clk 0:02:01]}  Qb7 {[%clk 0:00:41]} 29. Qb2 {[%clk 0:01:58]}  Kg8 {[%clk 0:00:40]} 30. Rac1 {[%clk 0:01:54]}  Nb4 {[%clk 0:00:40]} 31. f5 {[%clk 0:01:55]}  Nc5 {[%clk 0:00:36]} 32. Qe2 {[%clk 0:01:53]}  Qe4 {[%clk 0:00:31]} 33. Rf1 {[%clk 0:01:52]}  Ncd3 {[%clk 0:00:26]} 34. Rc3 {[%clk 0:01:49]}  Nc5 {[%clk 0:00:20]} 35. Rf4 {[%clk 0:01:44]}  Qe5 {[%clk 0:00:20]} 36. h4 {[%clk 0:01:36]}  Nxa4 {[%clk 0:00:19]} 37. Rc1 {[%clk 0:01:37]}  Nc5 {[%clk 0:00:18]} 38. Rcf1 {[%clk 0:01:36]}  f6 {[%clk 0:00:14]} 39. Rg4 {[%clk 0:01:35]}  Kf7 {[%clk 0:00:12]} 40. Qf3 {[%clk 0:01:28]}  a4 {[%clk 0:00:08]} 41. Qh3 {[%clk 0:01:25]}  a3 {[%clk 0:00:06]} 42. fxg6+ {[%clk 0:01:25]}  hxg6 {[%clk 0:00:07]} 43. Rg5 {[%clk 0:01:26]}  Qe4 {[%clk 0:00:05]} 44. Qxc8 {[%clk 0:01:22]}  Qxe3+ {[%clk 0:00:05]} 45. Kh1 {[%clk 0:01:22]}  Qxd4 {[%clk 0:00:05]} 46. Qh8 {[%clk 0:01:16]}  Ke6 {[%clk 0:00:03]} 47. Rxg6 {[%clk 0:01:03]}  a2 {[%clk 0:00:03]} 48. Re1+ {[%clk 0:00:57]}  Ne4 {[%clk 0:00:02]} 49. Qa8 {[%clk 0:00:49]} 1-0


[Site "https://www.chess.com"]

[Event "Titled Tuesday Blitz April 11 Early 2023"]
[White "Mortazavi, Ali"]
[Black "Indjic, Aleksandar"]
[WhiteFideId "401323"]
[BlackFideId "911925"]
[WhiteElo "2339"]
[BlackElo "2614"]
[Result "0-1"]
[Round "01"]
[TimeControl "180+2"]
[Date "2023.04.11"]
[WhiteClock "0:00:04"]
[BlackClock "0:00:11"]

1. Nf3 {[%clk 0:02:59]}  c5 {[%clk 0:03:00]} 2. e4 {[%clk 0:02:56]}  d6 {[%clk 0:03:00]} 3. g3 {[%clk 0:02:53]}  Nf6 {[%clk 0:03:00]} 4. d3 {[%clk 0:02:53]}  g6 {[%clk 0:03:00]} 5. Bg2 {[%clk 0:02:52]}  Bg7 {[%clk 0:03:00]} 6. O-O {[%clk 0:02:53]}  O-O {[%clk 0:03:01]} 7. e5 {[%clk 0:02:48]}  dxe5 {[%clk 0:03:00]} 8. Nxe5 {[%clk 0:02:48]}  Nbd7 {[%clk 0:02:55]} 9. Nc4 {[%clk 0:02:48]}  Nb6 {[%clk 0:02:52]} 10. Nc3 {[%clk 0:02:37]}  Nbd5 {[%clk 0:02:52]} 11. Bd2 {[%clk 0:02:27]}  b6 {[%clk 0:02:50]} 12. a4 {[%clk 0:02:25]}  Bb7 {[%clk 0:02:48]} 13. Qe2 {[%clk 0:02:10]}  Re8 {[%clk 0:02:39]} 14. Ne4 {[%clk 0:01:59]}  Qc7 {[%clk 0:02:31]} 15. Rfe1 {[%clk 0:01:56]}  Rad8 {[%clk 0:02:25]} 16. Ng5 {[%clk 0:01:56]}  Rf8 {[%clk 0:01:46]} 17. Ne5 {[%clk 0:01:51]}  h6 {[%clk 0:01:16]} 18. Nexf7 {[%clk 0:01:07]}  Rxf7 {[%clk 0:01:17]} 19. Nxf7 {[%clk 0:01:06]}  Kxf7 {[%clk 0:01:18]} 20. c4 {[%clk 0:00:53]}  Nb4 {[%clk 0:01:18]} 21. Bxb7 {[%clk 0:00:53]}  Qxb7 {[%clk 0:01:17]} 22. Bxb4 {[%clk 0:00:49]}  cxb4 {[%clk 0:01:18]} 23. a5 {[%clk 0:00:43]}  Rd6 {[%clk 0:01:05]} 24. axb6 {[%clk 0:00:43]}  axb6 {[%clk 0:01:06]} 25. d4 {[%clk 0:00:36]}  Rxd4 {[%clk 0:01:02]} 26. Qe6+ {[%clk 0:00:35]}  Kf8 {[%clk 0:01:02]} 27. Rad1 {[%clk 0:00:34]}  Rxd1 {[%clk 0:00:50]} 28. Rxd1 {[%clk 0:00:34]}  Qc7 {[%clk 0:00:50]} 29. Ra1 {[%clk 0:00:33]}  Qd8 {[%clk 0:00:42]} 30. Qc6 {[%clk 0:00:26]}  Kf7 {[%clk 0:00:41]} 31. Ra8 {[%clk 0:00:22]}  Qd1+ {[%clk 0:00:40]} 32. Kg2 {[%clk 0:00:23]}  Qd4 {[%clk 0:00:37]} 33. b3 {[%clk 0:00:19]}  Ne4 {[%clk 0:00:25]} 34. Qe8+ {[%clk 0:00:16]}  Kf6 {[%clk 0:00:24]} 35. Qc6+ {[%clk 0:00:14]}  e6 {[%clk 0:00:24]} 36. Ra2 {[%clk 0:00:11]}  Nc3 {[%clk 0:00:15]} 37. Qf3+ {[%clk 0:00:08]}  Ke5 {[%clk 0:00:12]} 38. Ra1 {[%clk 0:00:06]}  Qe4 {[%clk 0:00:12]} 39. Ra6 {[%clk 0:00:04]}  Bf8 {[%clk 0:00:08]} 40. Rxb6 {[%clk 0:00:02]}  Bc5 {[%clk 0:00:09]} 41. Rxe6+ {[%clk 0:00:01]}  Kxe6 {[%clk 0:00:09]} 42. Qxe4+ {[%clk 0:00:01]}  Nxe4 {[%clk 0:00:10]} 43. f3 {[%clk 0:00:02]}  Nd2 {[%clk 0:00:10]} 44. Kh3 {[%clk 0:00:02]}  Nxb3 {[%clk 0:00:10]} 45. Kg4 {[%clk 0:00:03]}  Na5 {[%clk 0:00:11]} 46. f4 {[%clk 0:00:04]}  b3 {[%clk 0:00:11]} 0-1


[Site "https://www.chess.com"]

[Event "Titled Tuesday Blitz April 11 Early 2023"]
[White "Demchenko, Anton"]
[Black "Berthier, Hugo"]
[WhiteFideId "4160258"]
[BlackFideId "655864"]
[WhiteElo "2545"]
[BlackElo "2193"]
[Result "1-0"]
[Round "01"]
[TimeControl "180+2"]
[Date "2023.04.11"]
[WhiteClock "0:00:52"]
[BlackClock "0:00:37"]

1. e4 {[%clk 0:03:00]}  e5 {[%clk 0:02:59]} 2. Nf3 {[%clk 0:02:58]}  Nc6 {[%clk 0:02:59]} 3. Bc4 {[%clk 0:02:58]}  Nf6 {[%clk 0:02:59]} 4. d3 {[%clk 0:02:59]}  Bc5 {[%clk 0:02:59]} 5. O-O {[%clk 0:02:58]}  d6 {[%clk 0:02:59]} 6. c3 {[%clk 0:02:58]}  a6 {[%clk 0:02:58]} 7. a4 {[%clk 0:02:58]}  Ba7 {[%clk 0:02:59]} 8. Re1 {[%clk 0:02:58]}  O-O {[%clk 0:02:59]} 9. h3 {[%clk 0:02:58]}  h6 {[%clk 0:02:59]} 10. Nbd2 {[%clk 0:02:56]}  Re8 {[%clk 0:03:00]} 11. b4 {[%clk 0:02:56]}  Be6 {[%clk 0:03:00]} 12. Bxe6 {[%clk 0:02:57]}  Rxe6 {[%clk 0:03:01]} 13. Qc2 {[%clk 0:02:58]}  Ne7 {[%clk 0:02:52]} 14. Nf1 {[%clk 0:02:51]}  Ng6 {[%clk 0:02:52]} 15. Ng3 {[%clk 0:02:51]}  d5 {[%clk 0:02:51]} 16. c4 {[%clk 0:02:34]}  dxc4 {[%clk 0:02:45]} 17. dxc4 {[%clk 0:02:35]}  Nf4 {[%clk 0:02:07]} 18. Rd1 {[%clk 0:02:04]}  Qe8 {[%clk 0:01:57]} 19. c5 {[%clk 0:01:55]}  Rd8 {[%clk 0:01:45]} 20. Be3 {[%clk 0:01:51]}  Rxd1+ {[%clk 0:01:39]} 21. Rxd1 {[%clk 0:01:50]}  c6 {[%clk 0:01:38]} 22. Nf5 {[%clk 0:01:41]}  Bb8 {[%clk 0:01:35]} 23. g3 {[%clk 0:01:37]}  Nxh3+ {[%clk 0:01:30]} 24. Kg2 {[%clk 0:01:37]}  Ng5 {[%clk 0:01:30]} 25. Bxg5 {[%clk 0:01:36]}  hxg5 {[%clk 0:01:31]} 26. Nxg5 {[%clk 0:01:37]}  Bc7 {[%clk 0:01:05]} 27. Qc4 {[%clk 0:01:27]}  Re7 {[%clk 0:00:56]} 28. Nxe7+ {[%clk 0:01:26]}  Qxe7 {[%clk 0:00:57]} 29. a5 {[%clk 0:01:18]}  g6 {[%clk 0:00:55]} 30. Qb3 {[%clk 0:00:57]}  Kg7 {[%clk 0:00:55]} 31. Qf3 {[%clk 0:00:55]}  Nh5 {[%clk 0:00:49]} 32. Qxf7+ {[%clk 0:00:51]}  Qxf7 {[%clk 0:00:48]} 33. Nxf7 {[%clk 0:00:52]}  Nf6 {[%clk 0:00:37]} 34. Ng5 {[%clk 0:00:52]}  Kh6 {[%clk 0:00:37]} 35. Ne6 {[%clk 0:00:52]} 1-0


[Site "https://www.chess.com"]

[Event "Titled Tuesday Blitz April 11 Early 2023"]
[White "Grigoriants, Sergey"]
[Black "Miszler, Levente"]
[WhiteFideId "4130804"]
[BlackFideId "763276"]
[WhiteElo "2502"]
[BlackElo "2176"]
[Result "1-0"]
[Round "01"]
[TimeControl "180+2"]
[Date "2023.04.11"]
[WhiteClock "0:00:56"]
[BlackClock "0:00:39"]

1. d4 {[%clk 0:03:00]}  Nf6 {[%clk 0:02:57]} 2. c4 {[%clk 0:02:59]}  c5 {[%clk 0:02:58]} 3. d5 {[%clk 0:02:59]}  e6 {[%clk 0:02:56]} 4. Nc3 {[%clk 0:02:59]}  exd5 {[%clk 0:02:56]} 5. cxd5 {[%clk 0:03:00]}  d6 {[%clk 0:02:55]} 6. Nf3 {[%clk 0:03:00]}  g6 {[%clk 0:02:54]} 7. h3 {[%clk 0:03:01]}  Bg7 {[%clk 0:02:53]} 8. Bf4 {[%clk 0:03:01]}  a6 {[%clk 0:02:47]} 9. a4 {[%clk 0:03:01]}  O-O {[%clk 0:02:47]} 10. e3 {[%clk 0:03:01]}  Ne8 {[%clk 0:02:34]} 11. Be2 {[%clk 0:02:58]}  Nd7 {[%clk 0:02:33]} 12. O-O {[%clk 0:02:57]}  Qe7 {[%clk 0:02:33]} 13. Rb1 {[%clk 0:02:55]}  f5 {[%clk 0:02:30]} 14. Qc2 {[%clk 0:02:50]}  Ne5 {[%clk 0:02:19]} 15. b4 {[%clk 0:02:37]}  cxb4 {[%clk 0:01:55]} 16. Rxb4 {[%clk 0:02:36]}  h6 {[%clk 0:01:55]} 17. Rc1 {[%clk 0:02:26]}  g5 {[%clk 0:01:54]} 18. Bh2 {[%clk 0:02:24]}  g4 {[%clk 0:01:48]} 19. hxg4 {[%clk 0:02:12]}  fxg4 {[%clk 0:01:49]} 20. Nxe5 {[%clk 0:02:12]}  dxe5 {[%clk 0:01:45]} 21. Rcb1 {[%clk 0:02:04]}  Nd6 {[%clk 0:01:42]} 22. Bxg4 {[%clk 0:01:58]}  e4 {[%clk 0:01:33]} 23. Bxd6 {[%clk 0:01:48]}  Qxd6 {[%clk 0:01:32]} 24. Nxe4 {[%clk 0:01:47]}  Qg6 {[%clk 0:01:28]} 25. Bxc8 {[%clk 0:01:38]}  Raxc8 {[%clk 0:01:29]} 26. Qd3 {[%clk 0:01:33]}  Be5 {[%clk 0:01:16]} 27. f4 {[%clk 0:01:29]}  Bd6 {[%clk 0:00:54]} 28. Rb6 {[%clk 0:01:23]}  Rce8 {[%clk 0:00:50]} 29. R1b4 {[%clk 0:01:02]}  Rf6 {[%clk 0:00:39]} 30. Nxf6+ {[%clk 0:00:59]}  Qxf6 {[%clk 0:00:39]} 31. Re4 {[%clk 0:00:56]} 1-0


[Site "https://www.chess.com"]

[Event "Titled Tuesday Blitz April 11 Early 2023"]
[White "Novikov, Evgenij"]
[Black "Terry, Renato"]
[WhiteFideId "4125380"]
[BlackFideId "3803457"]
[WhiteElo "2242"]
[BlackElo "2575"]
[Result "0-1"]
[Round "01"]
[TimeControl "180+2"]
[Date "2023.04.11"]
[WhiteClock "0:00:02"]
[BlackClock "0:00:46"]

1. d4 {[%clk 0:02:59]}  e6 {[%clk 0:02:58]} 2. Nf3 {[%clk 0:02:58]}  Nf6 {[%clk 0:02:58]} 3. c4 {[%clk 0:02:58]}  Bb4+ {[%clk 0:02:58]} 4. Bd2 {[%clk 0:02:57]}  Qe7 {[%clk 0:02:56]} 5. a3 {[%clk 0:02:55]}  Bxd2+ {[%clk 0:02:56]} 6. Nbxd2 {[%clk 0:02:55]}  d6 {[%clk 0:02:57]} 7. e4 {[%clk 0:02:46]}  e5 {[%clk 0:02:57]} 8. d5 {[%clk 0:02:44]}  a5 {[%clk 0:02:57]} 9. b4 {[%clk 0:02:39]}  O-O {[%clk 0:02:57]} 10. Bd3 {[%clk 0:02:38]}  Na6 {[%clk 0:02:54]} 11. Rb1 {[%clk 0:02:36]}  axb4 {[%clk 0:02:54]} 12. axb4 {[%clk 0:02:37]}  c5 {[%clk 0:02:53]} 13. dxc6 {[%clk 0:02:25]}  bxc6 {[%clk 0:02:54]} 14. O-O {[%clk 0:02:24]}  Be6 {[%clk 0:02:47]} 15. Qc2 {[%clk 0:02:16]}  c5 {[%clk 0:02:46]} 16. b5 {[%clk 0:02:12]}  Nb4 {[%clk 0:02:46]} 17. Qc3 {[%clk 0:02:07]}  Nd7 {[%clk 0:02:39]} 18. Ra1 {[%clk 0:02:00]}  Nb6 {[%clk 0:02:36]} 19. Be2 {[%clk 0:01:52]}  Qb7 {[%clk 0:02:26]} 20. Rxa8 {[%clk 0:01:48]}  Rxa8 {[%clk 0:02:27]} 21. Ra1 {[%clk 0:01:47]}  Ra7 {[%clk 0:02:27]} 22. Ng5 {[%clk 0:01:38]}  Bd7 {[%clk 0:02:25]} 23. Nb3 {[%clk 0:01:27]}  Rxa1+ {[%clk 0:02:19]} 24. Qxa1 {[%clk 0:01:26]}  h6 {[%clk 0:02:19]} 25. Nf3 {[%clk 0:01:20]}  Qxe4 {[%clk 0:02:17]} 26. Bf1 {[%clk 0:01:13]}  Qa8 {[%clk 0:02:01]} 27. Qd1 {[%clk 0:01:10]}  Qb8 {[%clk 0:02:01]} 28. Nfd2 {[%clk 0:01:06]}  Be6 {[%clk 0:02:01]} 29. Qc1 {[%clk 0:00:48]}  Qa8 {[%clk 0:01:59]} 30. g3 {[%clk 0:00:41]}  Qa2 {[%clk 0:01:55]} 31. Qd1 {[%clk 0:00:36]}  Bf5 {[%clk 0:01:51]} 32. Qa1 {[%clk 0:00:31]}  Qxa1 {[%clk 0:01:50]} 33. Nxa1 {[%clk 0:00:32]}  Kf8 {[%clk 0:01:40]} 34. Nab3 {[%clk 0:00:31]}  Ke7 {[%clk 0:01:40]} 35. h3 {[%clk 0:00:31]}  Bc2 {[%clk 0:01:36]} 36. Na5 {[%clk 0:00:30]}  f5 {[%clk 0:01:35]} 37. Be2 {[%clk 0:00:27]}  e4 {[%clk 0:01:36]} 38. Kf1 {[%clk 0:00:26]}  Ke6 {[%clk 0:01:36]} 39. Nb7 {[%clk 0:00:25]}  Ke5 {[%clk 0:01:31]} 40. Nd8 {[%clk 0:00:19]}  Kf6 {[%clk 0:01:18]} 41. Ke1 {[%clk 0:00:16]}  g5 {[%clk 0:01:18]} 42. h4 {[%clk 0:00:16]}  gxh4 {[%clk 0:01:17]} 43. gxh4 {[%clk 0:00:17]}  f4 {[%clk 0:01:18]} 44. Nc6 {[%clk 0:00:15]}  Nd3+ {[%clk 0:01:01]} 45. Kf1 {[%clk 0:00:15]}  Ne5 {[%clk 0:01:01]} 46. Ke1 {[%clk 0:00:13]}  Ke6 {[%clk 0:00:57]} 47. Bh5 {[%clk 0:00:10]}  Nexc4 {[%clk 0:00:54]} 48. Nxc4 {[%clk 0:00:09]}  Nxc4 {[%clk 0:00:54]} 49. Be8 {[%clk 0:00:04]}  Nb6 {[%clk 0:00:52]} 50. Nb8 {[%clk 0:00:02]}  d5 {[%clk 0:00:50]} 51. Bc6 {[%clk 0:00:02]}  d4 {[%clk 0:00:48]} 52. Na6 {[%clk 0:00:03]}  Kd6 {[%clk 0:00:48]} 53. Bb7 {[%clk 0:00:02]}  e3 {[%clk 0:00:48]} 54. fxe3 {[%clk 0:00:03]}  fxe3 {[%clk 0:00:49]} 55. Ke2 {[%clk 0:00:03]}  Ba4 {[%clk 0:00:48]} 56. Bc6 {[%clk 0:00:02]}  Nc4 {[%clk 0:00:48]} 57. Nb8 {[%clk 0:00:02]}  Ne5 {[%clk 0:00:49]} 58. Be8 {[%clk 0:00:01]}  c4 {[%clk 0:00:48]} 59. Nc6 {[%clk 0:00:01]}  Nxc6 {[%clk 0:00:46]} 60. Bxc6 {[%clk 0:00:02]}  Kc5 {[%clk 0:00:46]} 0-1


[Site "https://www.chess.com"]

[Event "Titled Tuesday Blitz April 11 Early 2023"]
[White "Sai Han Thiha"]
[Black "Kollars, Dmitrij"]
[WhiteFideId "13012290"]
[BlackFideId "12909572"]
[WhiteElo "1954"]
[BlackElo "2584"]
[Result "0-1"]
[Round "01"]
[TimeControl "180+2"]
[Date "2023.04.11"]
[WhiteClock "0:00:01"]
[BlackClock "0:00:36"]

1. d4 {[%clk 0:03:00]}  Nf6 {[%clk 0:02:57]} 2. c4 {[%clk 0:03:01]}  e6 {[%clk 0:02:55]} 3. Nf3 {[%clk 0:03:02]}  b6 {[%clk 0:02:54]} 4. g3 {[%clk 0:03:02]}  Ba6 {[%clk 0:02:53]} 5. b3 {[%clk 0:03:02]}  Bb4+ {[%clk 0:02:53]} 6. Bd2 {[%clk 0:03:02]}  Be7 {[%clk 0:02:54]} 7. Nc3 {[%clk 0:03:02]}  d5 {[%clk 0:02:55]} 8. cxd5 {[%clk 0:02:36]}  exd5 {[%clk 0:02:55]} 9. Bg2 {[%clk 0:02:36]}  O-O {[%clk 0:02:51]} 10. O-O {[%clk 0:02:36]}  Re8 {[%clk 0:02:50]} 11. Bf4 {[%clk 0:02:26]}  Nbd7 {[%clk 0:02:45]} 12. Ne5 {[%clk 0:02:11]}  Bb7 {[%clk 0:02:44]} 13. Rc1 {[%clk 0:02:04]}  Nf8 {[%clk 0:02:27]} 14. Bh3 {[%clk 0:00:51]}  c5 {[%clk 0:02:21]} 15. Ng4 {[%clk 0:00:34]}  Ne6 {[%clk 0:02:14]} 16. Be5 {[%clk 0:00:28]}  Nd7 {[%clk 0:02:09]} 17. Ne3 {[%clk 0:00:24]}  Nxe5 {[%clk 0:02:07]} 18. dxe5 {[%clk 0:00:20]}  d4 {[%clk 0:02:07]} 19. Nf5 {[%clk 0:00:15]}  dxc3 {[%clk 0:02:06]} 20. Rxc3 {[%clk 0:00:15]}  Qxd1 {[%clk 0:01:18]} 21. Rxd1 {[%clk 0:00:16]}  Bc6 {[%clk 0:01:19]} 22. f3 {[%clk 0:00:09]}  g6 {[%clk 0:01:16]} 23. Nd6 {[%clk 0:00:07]}  Bxd6 {[%clk 0:01:13]} 24. Rxd6 {[%clk 0:00:08]}  Bb5 {[%clk 0:01:10]} 25. e4 {[%clk 0:00:08]}  Rad8 {[%clk 0:01:08]} 26. Rc2 {[%clk 0:00:07]}  Nd4 {[%clk 0:01:08]} 27. Rf2 {[%clk 0:00:03]}  Kf8 {[%clk 0:01:04]} 28. f4 {[%clk 0:00:02]}  Ke7 {[%clk 0:01:03]} 29. Rxd8 {[%clk 0:00:02]}  Rxd8 {[%clk 0:01:04]} 30. f5 {[%clk 0:00:02]}  gxf5 {[%clk 0:00:59]} 31. exf5 {[%clk 0:00:03]}  f6 {[%clk 0:01:00]} 32. exf6+ {[%clk 0:00:03]}  Kxf6 {[%clk 0:01:00]} 33. g4 {[%clk 0:00:04]}  Ne2+ {[%clk 0:00:58]} 34. Kg2 {[%clk 0:00:05]}  Bc6+ {[%clk 0:00:49]} 35. Kf1 {[%clk 0:00:05]}  Nc3 {[%clk 0:00:50]} 36. g5+ {[%clk 0:00:02]}  Kxg5 {[%clk 0:00:49]} 37. Rc2 {[%clk 0:00:02]}  Rd3 {[%clk 0:00:45]} 38. Kf2 {[%clk 0:00:03]}  Rxh3 {[%clk 0:00:44]} 39. Kg1 {[%clk 0:00:03]}  Rd3 {[%clk 0:00:41]} 40. f6 {[%clk 0:00:02]}  Kxf6 {[%clk 0:00:41]} 41. Rf2+ {[%clk 0:00:01]}  Ke5 {[%clk 0:00:41]} 42. Rc2 {[%clk 0:00:02]}  Be4 {[%clk 0:00:39]} 43. Rb2 {[%clk 0:00:02]}  Kf4 {[%clk 0:00:38]} 44. Rf2+ {[%clk 0:00:01]}  Ke3 {[%clk 0:00:38]} 45. Rf1 {[%clk 0:00:01]}  Rd2 {[%clk 0:00:38]} 46. Re1+ {[%clk 0:00:01]}  Kd3 {[%clk 0:00:37]} 47. h4 {[%clk 0:00:01]}  h5 {[%clk 0:00:36]} 0-1


[Site "https://www.chess.com"]

[Event "Titled Tuesday Blitz April 11 Early 2023"]
[White "Gholami Orimi, Mahdi"]
[Black "Deng, Henry"]
[WhiteFideId "12558486"]
[BlackFideId "30965454"]
[WhiteElo "2363"]
[BlackElo "2508"]
[Result "0-1"]
[Round "01"]
[TimeControl "180+2"]
[Date "2023.04.11"]
[WhiteClock "0:00:11"]
[BlackClock "0:00:44"]

1. d4 {[%clk 0:03:00]}  d5 {[%clk 0:02:58]} 2. Nc3 {[%clk 0:02:58]}  Nf6 {[%clk 0:02:58]} 3. Bf4 {[%clk 0:02:58]}  c5 {[%clk 0:02:55]} 4. e3 {[%clk 0:02:56]}  cxd4 {[%clk 0:02:39]} 5. exd4 {[%clk 0:02:53]}  Bg4 {[%clk 0:02:39]} 6. f3 {[%clk 0:02:50]}  Bd7 {[%clk 0:02:35]} 7. Nb5 {[%clk 0:02:29]}  Bxb5 {[%clk 0:02:29]} 8. Bxb5+ {[%clk 0:02:30]}  Nc6 {[%clk 0:02:28]} 9. c3 {[%clk 0:02:29]}  e6 {[%clk 0:02:26]} 10. Ne2 {[%clk 0:02:29]}  Bd6 {[%clk 0:02:27]} 11. Qd2 {[%clk 0:02:16]}  Bxf4 {[%clk 0:02:25]} 12. Nxf4 {[%clk 0:02:17]}  O-O {[%clk 0:02:23]} 13. O-O {[%clk 0:02:17]}  Qb6 {[%clk 0:02:23]} 14. Bxc6 {[%clk 0:02:14]}  Qxc6 {[%clk 0:02:21]} 15. Nd3 {[%clk 0:02:15]}  Nd7 {[%clk 0:02:17]} 16. Qe2 {[%clk 0:02:05]}  f6 {[%clk 0:02:13]} 17. f4 {[%clk 0:02:05]}  Rae8 {[%clk 0:02:04]} 18. Rae1 {[%clk 0:02:05]}  Qa6 {[%clk 0:02:03]} 19. a3 {[%clk 0:02:04]}  Qc4 {[%clk 0:01:55]} 20. Rf3 {[%clk 0:02:00]}  Rf7 {[%clk 0:01:33]} 21. Re3 {[%clk 0:01:57]}  Nf8 {[%clk 0:01:33]} 22. f5 {[%clk 0:01:41]}  e5 {[%clk 0:01:26]} 23. dxe5 {[%clk 0:01:31]}  fxe5 {[%clk 0:01:25]} 24. Nxe5 {[%clk 0:01:25]}  Qxe2 {[%clk 0:01:25]} 25. R3xe2 {[%clk 0:01:23]}  Rxf5 {[%clk 0:01:25]} 26. Nf3 {[%clk 0:01:23]}  Rxe2 {[%clk 0:01:22]} 27. Rxe2 {[%clk 0:01:24]}  Kf7 {[%clk 0:01:21]} 28. Kf2 {[%clk 0:01:12]}  Ne6 {[%clk 0:01:19]} 29. Ke3 {[%clk 0:01:08]}  Rf6 {[%clk 0:01:11]} 30. Nd4 {[%clk 0:00:39]}  Nc5 {[%clk 0:01:02]} 31. g3 {[%clk 0:00:26]}  Ke7 {[%clk 0:00:57]} 32. b4 {[%clk 0:00:20]}  Na4 {[%clk 0:00:49]} 33. Kd3+ {[%clk 0:00:19]}  Kd6 {[%clk 0:00:49]} 34. Nb5+ {[%clk 0:00:19]}  Kd7 {[%clk 0:00:48]} 35. Re3 {[%clk 0:00:13]}  a6 {[%clk 0:00:48]} 36. Nd4 {[%clk 0:00:13]}  Rf2 {[%clk 0:00:45]} 37. h4 {[%clk 0:00:11]}  Nb2# {[%clk 0:00:44]} 0-1


[Site "https://www.chess.com"]

[Event "Titled Tuesday Blitz April 11 Early 2023"]
[White "Ginzburg, Yakov"]
[Black "Movahed, Sina"]
[WhiteFideId "4157176"]
[BlackFideId "42520835"]
[WhiteElo "2305"]
[BlackElo "2225"]
[Result "0-1"]
[Round "01"]
[TimeControl "180+2"]
[Date "2023.04.11"]
[WhiteClock "0:00:02"]
[BlackClock "0:00:49"]

1. e4 {[%clk 0:03:00]}  c5 {[%clk 0:02:59]} 2. Nf3 {[%clk 0:02:59]}  d6 {[%clk 0:03:00]} 3. c3 {[%clk 0:02:59]}  Nf6 {[%clk 0:03:00]} 4. Be2 {[%clk 0:02:57]}  g6 {[%clk 0:03:00]} 5. O-O {[%clk 0:02:57]}  Bg7 {[%clk 0:03:00]} 6. Re1 {[%clk 0:02:55]}  O-O {[%clk 0:02:59]} 7. Bf1 {[%clk 0:02:55]}  Bg4 {[%clk 0:03:00]} 8. h3 {[%clk 0:02:54]}  Bxf3 {[%clk 0:03:00]} 9. Qxf3 {[%clk 0:02:54]}  Nc6 {[%clk 0:03:01]} 10. d3 {[%clk 0:02:32]}  b5 {[%clk 0:02:58]} 11. Bg5 {[%clk 0:02:27]}  b4 {[%clk 0:02:55]} 12. Nd2 {[%clk 0:02:25]}  Nd7 {[%clk 0:02:53]} 13. Rac1 {[%clk 0:02:24]}  Qa5 {[%clk 0:02:48]} 14. Nc4 {[%clk 0:01:46]}  Qxa2 {[%clk 0:02:34]} 15. Be2 {[%clk 0:01:22]}  Nce5 {[%clk 0:02:28]} 16. Nxe5 {[%clk 0:01:18]}  Nxe5 {[%clk 0:02:27]} 17. Qg3 {[%clk 0:01:19]}  Qxb2 {[%clk 0:02:04]} 18. Bxe7 {[%clk 0:01:16]}  Rfe8 {[%clk 0:02:02]} 19. Bxd6 {[%clk 0:01:12]}  bxc3 {[%clk 0:02:02]} 20. Bxc5 {[%clk 0:01:12]}  Nc6 {[%clk 0:02:02]} 21. Rb1 {[%clk 0:01:03]}  Qa2 {[%clk 0:01:54]} 22. Qe3 {[%clk 0:00:58]}  c2 {[%clk 0:01:35]} 23. Rb7 {[%clk 0:00:58]}  Rab8 {[%clk 0:01:30]} 24. Rxb8 {[%clk 0:00:53]}  Rxb8 {[%clk 0:01:30]} 25. Kh2 {[%clk 0:00:39]}  Rb1 {[%clk 0:01:28]} 26. Rc1 {[%clk 0:00:39]}  Rxc1 {[%clk 0:01:24]} 27. Qxc1 {[%clk 0:00:39]}  Bb2 {[%clk 0:01:25]} 28. Qh6 {[%clk 0:00:31]}  Bg7 {[%clk 0:01:05]} 29. Qg5 {[%clk 0:00:08]}  h6 {[%clk 0:00:59]} 30. Qd2 {[%clk 0:00:06]}  Qb2 {[%clk 0:00:54]} 31. Be3 {[%clk 0:00:06]}  Bc3 {[%clk 0:00:53]} 32. Qc1 {[%clk 0:00:05]}  Nd4 {[%clk 0:00:53]} 33. Bg4 {[%clk 0:00:02]}  Qxc1 {[%clk 0:00:52]} 34. Bxc1 {[%clk 0:00:02]}  Nb3 {[%clk 0:00:48]} 35. Bxh6 {[%clk 0:00:02]}  Bd2 {[%clk 0:00:49]} 0-1


[Site "https://www.chess.com"]